Cogmind - Beta 15 @@@ ROGUE MODE // 2025.05.08 @ 23:29:48 Player: DuckBoy Result: Destroyed by exploding Nuclear Reactor Performance ------------- Evolutions (0) 0 Regions Visited (1) 200 Robots Destroyed (27) 135 Value Destroyed (462) 462 Prototype IDs (2) 40 Alien Tech Used (0) 0 Bonus (0) 0 TOTAL SCORE: 837 Bonus ------- None Cogmind --------- Core Integrity 0/250 Matter 300/300 Energy 250/250 System Corruption 0% Temperature Cool (0) Movement Treading (320) Ox2 Location -10/Materials Parts ------- > --- POWER (1) -------- Ion Engine > --- PROPULSION (2) --- Light Treads Light Treads > --- UTILITY (2) ------ Huge Storage Unit Structural Scanner > --- WEAPON (2) ------- Small Laser Light Assault Rifle > --- INVENTORY (25) --- Ion Engine Light Treads Wheel Wheel Compact Wheel Heat Sink High-capacity Storage Unit Sensor Array Signal Interpreter Light Armor Plating Small Laser Grenade Launcher Mining Laser Peak State ------------ > --- POWER ------------ Ion Engine > --- PROPULSION ------- Light Treads Light Treads > --- UTILITY ---------- Heat Sink High-capacity Storage Unit > --- WEAPON ----------- Small Laser Small Laser > --- INVENTORY -------- Ion Engine Light Treads Wheel Wheel Compact Wheel Huge Storage Unit Sensor Array Light Assault Rifle Grenade Launcher Mining Laser [Rating: 8] Favorites ----------- Power Ion Engine Engine Ion Engine Propulsion Light Treads Treads Light Treads Utility Huge Storage Unit Device Structural Scanner Storage Huge Storage Unit Weapon Small Laser Energy Gun Small Laser Ballistic Gun Light Assault Rifle Launcher Grenade Launcher Special Weapon Mining Laser Build | -11 -10 ------- Run | Yrd Mat Slots Evolved . | . . Power . | . . Propulsion . | . . Utility . | . . Weapon . | . . Parts Attached 15 | 6 9 Power 1 | 1 . Engine 1 | 1 . Core . | . . Reactor . | . . Propulsion 2 | 2 . Treads 2 | 2 . Leg . | . . Wheel . | . . Hover . | . . Flight . | . . Utility 6 | 1 5 Device 3 | . 3 Storage 3 | 1 2 Processor . | . . Hackware . | . . Protection . | . . Artifact . | . . Weapon 6 | 2 4 Energy Gun 2 | 1 1 Energy Cannon . | . . Ballistic Gun 1 | 1 . Ballistic Cannon . | . . Launcher 2 | . 2 Special Weapon 1 | . 1 Impact Weapon . | . . Slashing Weapon . | . . Piercing Weapon . | . . Special Melee Weapon . | . . Unidentified Prototypes . | . . Parts Lost 1 | . 1 Power . | . . Propulsion . | . . Utility . | . . Weapon 1 | . 1 Highest Loss Streak 1 | . 1 To Critical Strikes . | . . Average Backups 10 | 2 10 Power . | . 1 Propulsion 3 | 1 3 Utility 3 | . 3 Weapon 2 | . 2 Tool/Special . | . . Unused Backups 7 | . 7 Power 1 | . 1 Propulsion 4 | . 4 Utility 2 | . 2 Weapon . | . . Tool/Special . | . . Average Slot Usage (%) 98 | . 98 Engine 13 | . 13 Treads 27 | . 27 Device 13 | . 13 Storage 14 | . 14 Energy Gun 18 | . 18 Ballistic Gun 5 | . 5 Launcher 1 | . 1 Special Weapon 2 | . 2 Peak Build Rating 8 | 6 8 Average Rating 7 | 4 7 On Entrance 3 | . 6 Naked Turns . | . . Heaviest Build 90 | 12 90 Greatest Support 40 | 40 40 Greatest Overweight (x) 2 | . 2 Average Overweight (x) 1 | . 1 Largest Inventory Capacity 25 | 8 25 Average Capacity 21 | 6 22 Most Carried 13 | 4 13 Average Carried 10 | 2 10 Final Capacity 25 | 8 25 Final Carried 13 | 4 13 Class Distribution -------------------- 100% | Mutant Dominant Class ---------------- Mutant | -10/Materials Resources | -11 -10 ----------- Run | Yrd Mat Matter Collected 681 | 235 446 Remotely . | . . Salvage Created 561 | . 561 Parts 37 | . 37 Haulers Intercepted 1 | . 1 Recyclers Shooed 3 | . 3 Parts Field Recycled . | . . Retrieved Matter . | . . Parts Self-Destructed . | . . Prevented . | . . Kills | -11 -10 ------- Run | Yrd Mat Combat Hostiles Destroyed 17 | . 17 Melee 1 | . 1 Guns 3 | . 3 AOE 13 | . 13 Classes Destroyed 7 | . 7 Worker 3 | . 3 Builder 1 | . 1 Hauler 1 | . 1 Recycler 3 | . 3 Watcher 2 | . 2 Swarmer 9 | . 9 Grunt 8 | . 8 Best Kill Streak 5 | . 5 Combat Bots Only 4 | . 4 Max Kills in Single Turn 3 | . 3 Gunslinging . | . . Exploded 2 | . 2 Melee 1 | . 1 Uniques/NPCs Destroyed . | . . Combat | -11 -10 -------- Run | Yrd Mat Hostile Shots Fired 70 | . 70 Missed 21 | . 21 Hits 49 | . 49 Projectile 49 | . 49 Damage Taken 669 | . 669 Core 259 | . 259 Absorbed by Shields . | . . Regen/Repaired (Parts) 208 | . 208 Core Remaining (%) 100 | 100 . Volleys Fired 66 | . 66 Largest 2 | . 2 Hottest 100 | . 100 Shots Fired 110 | . 110 Gun 89 | . 89 Cannon . | . . Launcher 17 | . 17 Special 4 | . 4 Kinetic 26 | . 26 Thermal 67 | . 67 Explosive 17 | . 17 Electromagnetic . | . . Robot Hit Streak 9 | . 9 Robot Miss Streak 2 | . 2 Penetration Max . | . . Secondary Targets . | . . Shots Hit Robots 60 | . 60 Core Hits 44 | . 44 Critical Kills . | . . Critical Parts Destroyed . | . . Critical Strikes . | . . Melee Attacks . | . . Impact . | . . Slashing . | . . Piercing . | . . Sneak Attacks . | . . Combat Hostiles . | . . Follow-up Attacks . | . . Damage Inflicted 1775 | . 1775 Guns 533 | . 533 Cannons . | . . Explosions 1240 | . 1240 Melee . | . . Ramming 2 | . 2 Kinetic 144 | . 144 Thermal 389 | . 389 Explosive 1240 | . 1240 Electromagnetic . | . . Impact . | . . Slashing . | . . Piercing . | . . Highest Corruption . | . . Average Corruption . | . . Corruption Purged . | . . Corruption Blocked . | . . Overload Shots . | . . Overflow Damage 50 | . 50 Projectiles . | . . Explosions 50 | . 50 Melee . | . . Knockbacks . | . . Impact . | . . Kinetic . | . . Secondary . | . . Self-Inflicted Damage . | . . Shots . | . . Rammed . | . . Targets Rammed 2 | . 2 Kicked . | . . Crushed 2 | . 2 Highest Temperature 122 | . 122 Average Temperature 31 | . 31 Received Heat Transfer 162 | . 162 Siege Activations . | . . Martial Activations . | . . Shielding Activations . | . . Robots Disrupted . | . . Combat Hostiles . | . . Robots Corrupted . | . . Combat Hostiles . | . . Parts Fried . | . . Impact Corruptions . | . . Robots Melted . | . . Combat Hostiles . | . . Parts Melted 1 | . 1 Heat Transferred 900 | . 900 Parts Sabotaged . | . . Parts Stolen . | . . Parts Stripped . | . . Power Chain Reactions . | . . Alert | -11 -10 ------- Run | Yrd Mat Maximum Alert Level 1 | . 1 Low Security (%) 95 | 100 95 Level 1 4 | . 4 Level 2 . | . . Level 3 . | . . Level 4 . | . . Level 5 . | . . High Security . | . . Max Security . | . . Peak Influence 217 | . 217 Initial . | . . Average 118 | . 123 Influence Increases 679 | . 679 Destroy 0b10 Robot/C 340 | . 340 Destroy 0b10 Robot/NC 50 | . 50 Destroy Leader 86 | . 86 Successful Hack 18 | . 18 Select Force Hacks 60 | . 60 Disable Machine 60 | . 60 Destroy Structure 65 | . 65 Influence Decreases 529 | . 529 Time Decay 519 | . 519 Lost Part 10 | . 10 Squads Dispatched 5 | . 5 Investigation 4 | . 4 Extermination . | . . Reinforcement 1 | . 1 Assault . | . . Garrison . | . . Intercept . | . . Searches Triggered . | . . Construction Impeded . | . . Haulers Reinforced . | . . Active Scanning Responses . | . . Cargo Convoy Interrupts . | . . Stealth | -11 -10 --------- Run | Yrd Mat Distress Signals . | . . Communications Jammed . | . . Distress Signals . | . . Times Spotted 26 | . 26 Peak Tracking Total 4 | . 4 Tactical Retreats . | . . Traps | -11 -10 ------- Run | Yrd Mat Traps Triggered 2 | . 2 Indirectly . | . . Trap Hack Attempts . | . . Triggered . | . . Disarmed . | . . Reprogrammed . | . . Reused . | . . Traps Extracted . | . . Installed . | . . Triggered . | . . Machines | -11 -10 ---------- Run | Yrd Mat Machines Disabled 4 | . 4 Max in Single Turn 2 | . 2 Machines Repaired . | . . Machines Dismantled . | . . Machines Sabotaged . | . . Overloaded Fab Kills . | . . Hacking | -11 -10 --------- Run | Yrd Mat Machines Accessed 7 | . 7 Terminals 4 | . 4 Fabricators . | . . Repair Stations 1 | . 1 Recycling Units 2 | . 2 Scanalyzers . | . . Garrison Access . | . . Total Hacks 24 | . 24 Successful 18 | . 18 Failed 6 | . 6 Catastrophic . | . . Database Lockouts . | . . Manual 12 | . 12 Terminals 14 | . 14 Fabricators . | . . Repair Stations 5 | . 5 Recycling Units 5 | . 5 Scanalyzers . | . . Garrison Access . | . . Terminal Hacks 6 | . 6 Prototype ID Bank 1 | . 1 Terminal Index 1 | . 1 Locate Traps 1 | . 1 Transport Status 1 | . 1 Hauler Manifests 1 | . 1 Zone Layout 1 | . 1 Fabricator Hacks . | . . Repair Station Hacks 4 | . 4 Scan Component 2 | . 2 Repair 2 | . 2 Recycling Unit Hacks 2 | . 2 Retrieve Components 2 | . 2 Scanalyzer . | . . Garrison Access Hacks . | . . Unauthorized Hacks 6 | . 6 Terminals 3 | . 3 Botnet 2 | . 2 Operators 1 | . 1 Fabricators . | . . Repair Stations . | . . Recycling Units 3 | . 3 Mask 1 | . 1 Tunnel 2 | . 2 Scanalyzers . | . . Garrison Access . | . . Data Cores Recovered . | . . Used . | . . Hacking Detections 5 | . 5 Full Trace Events 1 | . 1 Feedback Events . | . . Feedback Blocked . | . . Robot Schematics Acquired . | . . Robots Built . | . . Authchips . | . . Time . | . . Total Robot Build Rating . | . . Part Schematics Acquired . | . . Parts Built . | . . Authchips . | . . Time . | . . Total Part Build Rating . | . . Parts Repaired 2 | . 2 Time 52 | . 52 Parts Recycled . | . . Recycled Matter . | . . Retrieved Matter . | . . Retrieved Components 19 | . 19 Parts Scanalyzed . | . . Part Schematics Acquired . | . . Parts Damaged . | . . Bothacking | -11 -10 ------------ Run | Yrd Mat Used RIF Installer . | . . Robots Hacked . | . . Non-combat . | . . Combat . | . . Robot Hacks Applied . | . . Relay Couplers Released . | . . Fabnet Peak Effective % . | . . Robots Rewired . | . . Allies Hacked . | . . Hacks Repelled . | . . Allies | -11 -10 -------- Run | Yrd Mat Total Allies . | . . Largest Group . | . . Highest-Rated Group . | . . Highest-Rated Ally . | . . Total Orders . | . . Ally Attacks . | . . Total Damage . | . . Kills . | . . Allies Corrupted . | . . Allies Melted . | . . Intel | -11 -10 ------- Run | Yrd Mat Active Infowar (turns) 1246 | . 1246 Sensors 55 | . 55 Structural 1191 | . 1191 Robot Analysis Total . | . . Derelict Logs Recovered . | . . Drone Launches . | . . Drone Recoveries . | . . Exploration | -11 -10 ------------- Run | Yrd Mat Turns Passed 1878 | 78 1800 Spaces Moved 578 | 42 536 Core 1 | 1 . Treads 577 | 41 536 Legs . | . . Wheels . | . . Hover . | . . Flight . | . . Fastest Speed 50 | 50 160 Average Speed 270 | 157 279 Slowest Speed 320 | 160 320 Overloaded Moves . | . . Propulsion Burnouts . | . . Robots Hopped . | . . Potential Cave-ins . | . . Cave-ins Triggered . | . . Exploration Rate (%) 45 | 5 85 Regions Visited 1 Branch Regions . Pre-discovered Areas 2 | . 2 Known Exits Taken . | . . Unknown Exits Taken 1 | 1 . Scrap Searched . | . . Spaces Dug 5 | . 5 Terrain Destroyed 90 | . 90 Melee . | . . Projectile 1 | . 1 AOE 89 | . 89 Terrain Rammed . | . . Walls Destroyed . | . . Machines Disabled . | . . Actions | -11 -10 --------- Run | Yrd Mat Total 764 | 51 713 Wait 75 | . 75 Move 577 | 41 536 Hop . | . . Pick Up 14 | 4 10 Fast Attach 13 | 6 7 Attach 1 | . 1 Detach . | . . Swap 15 | . 15 Drop 1 | . 1 Fire 66 | . 66 Melee . | . . Ram . | . . Kick . | . . Crush 2 | . 2 Escape Stasis . | . . Rewire . | . . Trap . | . . Miscellaneous . | . . Route ------- -11/Scrapyard -10/Materials (discovered 3 exits: [*Mat x2] / [*Min]) History --------- Turn | Location | Event 8 | -11/Scrapyard | Discovered new exit (range 15) 79 | -11/Scrapyard | Entered Materials 305 | -10/Materials | Build established: Mutant 322 | -10/Materials | Discovered new exit (range 16) 919 | -10/Materials | Discovered new exit (range 6) 1245 | -10/Materials | Discovered new exit (range 8) 1821 | -10/Materials | Repaired Lgt. Treads 1848 | -10/Materials | Repaired Lgt. Treads 1879 | -10/Materials | Destroyed by exploding Nuclear Reactor Last Messages --------------- 01822_ Connecting with Repair Station... >>Scan(Lgt. Treads) Scanning Lgt. Treads... Ready to Repair: Lgt. Treads Rating: 1 Time: 26 >>Repair Repairing Lgt. Treads... ETC: 26 01822_ ALERT: Suspicious activity at Repair Station M001. Dispatching Investigation squad. 01848_ Repair station completes Lgt. Treads repairs. 01848_ Acquired Lgt. Treads. 01878_ Crushed G-34 Mercenary. 01878_ G-34 Mercenary destroyed. 01879_ Nuclear Reactor explodes. 01879_ Acquired 22 matter. 01879_ G-34 Mercenary destroyed. 01879_ Nuclear Reactor explodes. Map ----- +----------------------------------------------------+ | | | | | | | | | | | ?????????????????????????????????????? | | ?????????????????????????????????????? | | ?????????????????????????????????????? | | ?????????????????????????????????????? | | ?????????????????????????????????????? | | ?????????????????????????????????????? | | ?????????????????????????????????????? | | ?????????????????????????????????????? | | ?????????????????????#######?????????? | | ?????????????????????#######?????????? | | ?????????????????????##"""##?????????? | | ??????????????????#####"R"#####??????? | | ??????????????????#####" "######?????? | | ####??????????????## ###?????? | | ####??????????????## ##?????? | | ##??????????????## ##?????? | | ##??????????????## #####??? | | ##??????????????## #####??? | | ##??????????????## ##??? | | ##??????????????## *!* ##??? | | ##??????????????## @!%[ ##??? | | ##??????????????### ##??? | | ##??????????????### = ##??? | | ##???????????#### ## ##??? | | ################ # # # " ##??? | | ##### === ########## "" ###??? | | ????# === !### # "" ###??? | | ????# = ### # """ ##???? | | ????# ###[ + "" ##???? | | ????# ### # """ ##???? | | ????# """ ### # """ ##???? | | ????# """ * ###! # """ !##???? | | ##### """ ########## " ##???? | | ##### ##### ## ##???? | | ##+################ ##???? | | ##???? | | < % #####???? | | % #####???? | | "##+#########+##########+#####????? | | "| "# # ## #????? | | """"# # ## #????? | | ##### # T# #????? | | ### # """ ## #????? | | #?# # """ ##! #????? | | " #?# # """ ##!!! #????? | +----------------------------------------------------+ Best States ------------- Heat Dissipation 35 Energy Generation 10 Energy Capacity 250 Matter Stores 300 Matter Capacity 300 Sight Range 16 Robot Scan Range 14 Terrain Scan Density 10 Evasion (%) 40 Recoil Reduction 2 Item Schematics ----------------- None Robot Schematics ------------------ None Fabricated ------------ Nothing Repaired ---------- Lgt. Treads | 25% | -10/Materials Lgt. Treads | 26% | -10/Materials Alien Tech Used ----------------- None Achievements -------------- None Challenges ------------ None Game ------ Seed RecyclingFlyingCalibrator Manual? 0 Play Time 00:12:14 Cumulative 472.1 hours Start 2025.05.08 @ 23:10:38 End 2025.05.08 @ 23:29:48 Sessions 1 Manual Loads 0 Difficulty Rogue Special Mode None Game No. 300 Rogue 297 Adventurer 3 Explorer 0 Win Type - Total 8 Types 7/0/1/0/0/0/0/0/0/0 Lore% 69 Gallery% 70 Achievement% 67 Wizard Run 0 Options --------- Layout 0 ASCII 0 Keyboard 0 Movement Numpad Keybinds 0 Fullscreen 1 Font 18/SmallcapsGlow Map View 76x50 Zoom Use 0% Tactical HUD 1 Map Filters NONE Filters NONE Steam 1 RUN: 91fc8023-3c4b-4a92-b9b1-9b7027ad4685